Cogmind - Beta 16.1 @@@ ROGUE MODE // 2026.03.02 @ 00:43:06 Player: TheSkyeDoctor Result: Destroyed by Y-72 Warden with Quantum Rifle Performance ------------- Evolutions (7) 3500 Regions Visited (8) 1600 Robots Destroyed (73) 365 Value Destroyed (2902) 2902 Prototype IDs (0) 0 Alien Tech Used (0) 0 Bonus (0) 0 TOTAL SCORE: 8367 Bonus ------- None Cogmind --------- Core Integrity 0/1300 Matter 138/300 Energy 99/100 System Corruption 0% Temperature Cool (9) Movement Core (50) Location -3/Research Parts ------- > --- POWER (1) -------- (None) > --- PROPULSION (4) --- (None) > --- UTILITY (12) ----- Improved Terrain Scan Processor Advanced System Shield > --- WEAPON (4) ------- (None) > --- INVENTORY (5) ---- Antimatter Reactor Light Quantum Reactor Improved Treads Matter Compressor (0) Peak State ------------ > --- POWER ------------ Light Quantum Reactor > --- PROPULSION ------- Field Propulsion Drive > --- UTILITY ---------- Advanced Heat Sink Improved Terrain Scan Processor Improved Hacking Suite Advanced Hacking Suite System Shield Improved System Shield Advanced System Shield High-powered Tractor Beam > --- WEAPON ----------- Improved Remote Datajack > --- INVENTORY -------- Antimatter Reactor Improved Treads Matter Compressor [Rating: 58] Favorites ----------- Power Light Nuclear Core Engine Light Ion Engine Power Core Light Nuclear Core Reactor Antimatter Reactor Propulsion Armored Treads Treads Armored Treads Wheel Compact Wheel Flight Unit Field Propulsion Drive Utility Light Armor Plating Device Heat Sink Storage Huge Storage Unit Processor Improved Terrain Scan Processor Hackware System Shield Protection Light Armor Plating Weapon Heavy Particle Cannon Energy Gun Particle Gun Energy Cannon Heavy Particle Cannon Ballistic Gun Flak Gun Launcher Rocket Launcher Special Weapon Improved Remote Datajack Impact Weapon Great Maul Build | -11 -10 -9 -8 -7 -6 -5 -4 -3 ------- Run | Yrd Mat Mat Mat Fac Fac Fac Fac Res Slots Evolved 14 | . . 2 2 2 2 2 2 2 Power . | . . . . . . . . . Propulsion 2 | . . . 2 . . . . . Utility 10 | . . 2 . . 2 2 2 2 Weapon 2 | . . . . 2 . . . . Parts Attached 62 | 10 3 9 14 3 10 10 3 . Power 7 | 1 1 . 1 . 2 . 2 . Engine 2 | 1 1 . . . . . . . Core 3 | . . . 1 . 2 . . . Reactor 2 | . . . . . . . 2 . Propulsion 13 | 4 . 2 5 . 1 1 . . Treads 10 | 2 . 2 5 . 1 . . . Leg . | . . . . . . . . . Wheel 2 | 2 . . . . . . . . Hover . | . . . . . . . . . Flight 1 | . . . . . . 1 . . Utility 27 | 3 . 7 4 . 5 7 1 . Device 8 | 2 . 1 1 . 1 2 1 . Storage 4 | 1 . 2 . . 1 . . . Processor 1 | . . . . . 1 . . . Hackware 5 | . . . . . . 5 . . Protection 9 | . . 4 3 . 2 . . . Artifact . | . . . . . . . . . Weapon 15 | 2 2 . 4 3 2 2 . . Energy Gun 4 | . 1 . 1 . 1 1 . . Energy Cannon 4 | . . . 2 1 1 . . . Ballistic Gun 4 | 2 1 . . 1 . . . . Ballistic Cannon . | . . . . . . . . . Launcher 1 | . . . 1 . . . . . Special Weapon 1 | . . . . . . 1 . . Impact Weapon 1 | . . . . 1 . . . . Slashing Weapon . | . . . . . . . . . Piercing Weapon . | . . . . . . . . . Special Melee Weapon . | . . . . . . . . . Unidentified Prototypes . | . . . . . . . . . Parts Lost 42 | . 1 4 6 . 23 . . 8 Power 5 | . 1 . 1 . 3 . . . Propulsion 8 | . . . . . 7 . . 1 Utility 19 | . . 3 4 . 6 . . 6 Weapon 10 | . . 1 1 . 7 . . 1 Highest Loss Streak 18 | . 1 2 2 . 18 . . 5 To Critical Strikes . | . . . . . . . . . Average Backups 13 | 2 4 10 16 20 21 3 3 4 Power . | . 1 1 . 1 . . . 2 Propulsion 5 | 1 2 5 7 9 6 1 1 1 Utility 4 | . 1 3 4 6 8 1 1 1 Weapon 2 | . . . 3 4 4 1 . . Tool/Special . | . . . . . . . . . Unused Backups 9 | . . . 1 . 6 . . 2 Power . | . . . . . . . . . Propulsion 2 | . . . . . 1 . . 1 Utility 5 | . . . . . 4 . . 1 Weapon 2 | . . . 1 . 1 . . . Tool/Special . | . . . . . . . . . Average Slot Usage (%) 88 | . 98 96 99 99 86 43 54 33 Engine 4 | . 12 11 3 . . . . . Core 3 | . . . 5 7 5 . . . Treads 23 | . 28 22 35 30 20 . . . Device 9 | . 14 12 9 7 11 7 10 4 Storage 7 | . 14 11 9 7 5 . . . Processor 1 | . . . . . 5 5 5 4 Hackware 3 | . . . . . . 22 26 18 Protection 12 | . . 18 17 15 11 . . . Energy Gun 4 | . 5 11 6 . . . . . Energy Cannon 6 | . . . 7 17 10 . . . Ballistic Gun 4 | . 22 9 . 4 5 . . . Launcher 1 | . . . 3 . 1 . . . Impact Weapon 1 | . . . . 7 5 . . . Peak Build Rating 58 | 9 10 17 32 37 48 46 58 50 Average Rating 28 | 5 7 15 27 36 40 37 52 35 On Entrance 22 | . 7 10 15 30 37 4 46 50 Avg Prop Armor Cover (%) 6 | . . . . 6 . . . . Naked Turns . | . . . . . . . . . Heaviest Build 113 | 13 15 96 103 113 112 5 22 6 Greatest Support 82 | 40 40 40 82 82 82 7 7 7 Greatest Overweight (x) 3 | . . 2 1 1 2 . 3 1 Average Overweight (x) . | . . 1 1 1 . . . . Largest Inventory Capacity 25 | 8 8 25 25 25 25 5 5 5 Average Capacity 19 | 7 8 23 25 25 23 5 5 5 Most Carried 25 | 4 8 13 23 24 25 4 4 4 Average Carried 13 | 2 4 10 16 20 20 3 3 4 Final Capacity 25 | 8 8 25 25 25 5 5 5 5 Final Carried 24 | 4 8 12 21 24 5 4 4 4 Class Distribution -------------------- 52% | Mutant 13% | Tank 10% | Wizard-Mutant 10% | Scavenger-Skirmisher 9% | Scavenger-Mutant 3% | Hacker-Mutant Dominant Class ---------------- Mutant | -10/Materials Mutant | -9/Materials Mutant | -8/Materials Tank | -7/Factory Scavenger-Skirmisher | -6/Factory Wizard-Mutant | -5/Factory Wizard-Mutant | -4/Factory Wizard-Mutant | -3/Research Resources | -11 -10 -9 -8 -7 -6 -5 -4 -3 ----------- Run | Yrd Mat Mat Mat Fac Fac Fac Fac Res Matter Collected 1207 | 296 70 204 338 78 178 . . 43 Remotely 43 | . . . . . . . . 43 Salvage Created 2674 | 94 89 733 936 299 523 . . . Parts 137 | 9 7 31 48 12 30 . . . Haulers Intercepted . | . . . . . . . . . Recyclers Shooed . | . . . . . . . . . Parts Field Recycled . | . . . . . . . . . Retrieved Matter . | . . . . . . . . . Parts Self-Destructed . | . . . . . . . . . Prevented . | . . . . . . . . . Parts Restored . | . . . . . . . . . Kills | -11 -10 -9 -8 -7 -6 -5 -4 -3 ------- Run | Yrd Mat Mat Mat Fac Fac Fac Fac Res Combat Hostiles Destroyed 58 | . 2 15 20 6 15 . . . Guns 26 | . 2 15 5 . 4 . . . Cannons 18 | . . . 6 6 6 . . . AOE 13 | . . . 9 . 4 . . . Classes Destroyed 12 | 2 1 3 4 1 1 . . . Worker 3 | . . 1 2 . . . . . Builder 3 | . . . 3 . . . . . Tunneler 2 | 2 . . . . . . . . Recycler 2 | 1 . . 1 . . . . . Operator 2 | . . . 2 . . . . . Watcher 3 | . . 1 2 . . . . . Swarmer 7 | . . . . . 7 . . . Grunt 31 | . 2 8 15 2 4 . . . Brawler 1 | . . . 1 . . . . . Sentry 10 | . . 7 2 . 1 . . . Hunter 6 | . . . 2 2 2 . . . Programmer 3 | . . . . 2 1 . . . Best Kill Streak 8 | 3 2 3 8 2 4 . . . Combat Bots Only 5 | . 2 3 5 2 4 . . . Max Kills in Single Turn 3 | 1 1 1 3 1 3 . . . Gunslinging . | . . . . . . . . . Exploded 3 | . . . 2 . 3 . . . Melee . | . . . . . . . . . Uniques/NPCs Destroyed . | . . . . . . . . . Combat | -11 -10 -9 -8 -7 -6 -5 -4 -3 -------- Run | Yrd Mat Mat Mat Fac Fac Fac Fac Res Hostile Shots Fired 585 | . 22 85 96 33 231 1 4 113 Missed 170 | . 5 23 32 10 58 . 1 41 Hits 415 | . 17 62 64 23 173 1 3 72 Melee 2 | . . . . . 2 . . . Projectile 413 | . 17 62 64 23 171 1 3 72 Critical Strikes 16 | . 1 2 4 1 7 1 . . Part Disruptions 1 | . . . . 1 . . . . Damage Taken 7075 | . 225 874 1260 315 2693 28 55 1625 Core 2256 | . 31 83 123 . 661 20 18 1320 Absorbed by Shields . | . . . . . . . . . Redirected to Shielding 54 | . . . 10 . 44 . . . Core Remaining (%) 82 | 100 87 79 77 100 22 98 98 . Volleys Fired 204 | 10 13 53 76 13 34 3 2 . Largest 3 | 2 2 2 2 3 3 1 1 . Hottest 230 | 40 40 88 155 230 218 7 7 . Shots Fired 399 | 20 26 95 123 38 92 3 2 . Gun 218 | 20 26 95 48 1 28 . . . Cannon 146 | . . . 57 37 52 . . . Launcher 30 | . . . 18 . 12 . . . Special 5 | . . . . . . 3 2 . Kinetic 112 | 20 26 43 . 1 22 . . . Thermal 252 | . . 52 105 37 58 . . . Explosive 30 | . . . 18 . 12 . . . Electromagnetic . | . . . . . . . . . Robot Hit Streak 28 | 7 11 28 16 10 8 2 2 . Robot Miss Streak 9 | 1 3 2 5 2 9 2 . . Penetration Max . | . . . . . . . . . Secondary Targets 1 | . 1 . . . . . . . Max Gunslinging Chain 1 | . 1 . . . . . . . Shots Hit Robots 275 | 15 14 74 83 26 60 1 2 . Core Hits 149 | 6 6 28 54 10 45 . . . Critical Kills 1 | . . . . . 1 . . . Critical Parts Destroyed 2 | 1 . 1 . . . . . . Critical Strikes 7 | 1 . 2 3 . 1 . . . Burn 4 | . . 1 3 . . . . . Meltdown 1 | . . . . . 1 . . . Destroy 2 | 1 . 1 . . . . . . Melee Attacks 4 | . . . . 1 3 . . . Impact 4 | . . . . 1 3 . . . Slashing . | . . . . . . . . . Piercing . | . . . . . . . . . Sneak Attacks . | . . . . . . . . . Combat Hostiles . | . . . . . . . . . Follow-up Attacks . | . . . . . . . . . Damage Inflicted 6774 | 128 98 1181 2935 693 1715 8 . 16 Guns 2323 | 128 97 1181 624 . 293 . . . Cannons 2474 | . . . 900 693 881 . . . Explosions 1950 | . . . 1411 . 539 . . . Melee . | . . . . . . . . . Ramming 27 | . 1 . . . 2 8 . 16 Kinetic 922 | 128 97 471 . . 226 . . . Thermal 3875 | . . 710 1524 693 948 . . . Explosive 1950 | . . . 1411 . 539 . . . Electromagnetic . | . . . . . . . . . Impact . | . . . . . . . . . Slashing . | . . . . . . . . . Piercing . | . . . . . . . . . Highest Corruption 1 | . . . . 1 1 . . . Average Corruption 1 | . . . . 1 1 . . . Corruption Purged . | . . . . . . . . . Corruption Blocked . | . . . . . . . . . Effects 7 | . . . . 7 . . . . Message Errors 2 | . . . . 2 . . . . Matter Fused 1 | . . . . 1 . . . . Heat Flow Errors 2 | . . . . 2 . . . . Energy Discharges 2 | . . . . 2 . . . . Overload Shots . | . . . . . . . . . Overflow Damage 115 | . . . 70 . 45 . . . Projectiles 44 | . . . 38 . 6 . . . Explosions 71 | . . . 32 . 39 . . . Melee . | . . . . . . . . . Knockbacks . | . . . . . . . . . Impact . | . . . . . . . . . Kinetic . | . . . . . . . . . Secondary . | . . . . . . . . . Self-Inflicted Damage 306 | . . . 226 . 64 8 . 8 Shots 9 | . . . 7 . 2 . . . Rammed 3 | . 1 . . . 1 . . 1 Targets Rammed 3 | . 1 . . . 1 . . 1 Kicked . | . . . . . . . . . Crushed . | . . . . . . . . . Highest Temperature 653 | . 39 90 485 551 653 . . . Average Temperature 120 | . 24 26 108 186 237 . . . Received Heat Transfer 1995 | . 147 360 540 54 792 27 21 54 Effects 21 | . . . 1 7 13 . . . Shutdowns 4 | . . . 1 1 2 . . . Matter Decay 1 | . . . . 1 . . . . Short Circuit 1 | . . . . 1 . . . . Damage (minor) 5 | . . . . . 5 . . . Damage (major) 10 | . . . . 4 6 . . . Siege Activations . | . . . . . . . . . Martial Activations . | . . . . . . . . . Shielding Activations . | . . . . . . . . . Robots Disrupted . | . . . . . . . . . Combat Hostiles . | . . . . . . . . . Robots Corrupted . | . . . . . . . . . Combat Hostiles . | . . . . . . . . . Parts Fried . | . . . . . . . . . Impact Corruptions . | . . . . . . . . . Robots Melted 1 | . . . . . 1 . . . Combat Hostiles 1 | . . . . . 1 . . . Parts Melted 9 | . . 3 3 1 2 . . . Heat Transferred 7592 | . . 1739 3164 1116 1573 . . . Parts Sabotaged . | . . . . . . . . . Parts Stolen . | . . . . . . . . . Parts Stripped . | . . . . . . . . . Power Chain Reactions . | . . . . . . . . . Alert | -11 -10 -9 -8 -7 -6 -5 -4 -3 ------- Run | Yrd Mat Mat Mat Fac Fac Fac Fac Res Maximum Alert Level 1 | . . . 1 . 1 . . . Low Security (%) 86 | 100 100 100 63 100 75 100 100 100 Level 1 13 | . . . 36 . 24 . . . Level 2 . | . . . . . . . . . Level 3 . | . . . . . . . . . Level 4 . | . . . . . . . . . Level 5 . | . . . . . . . . . High Security . | . . . . . . . . . Max Security . | . . . . . . . . . Peak Influence 351 | 10 50 77 351 179 284 89 12 75 Initial 147 | . . . 4 147 . 89 9 . Average 75 | . 7 31 150 103 83 7 2 19 Influence Increases 2371 | 15 50 443 810 173 628 45 24 183 Destroy 0b10 Robot/C 1160 | . 40 300 400 120 300 . . . Destroy 0b10 Robot/NC 75 | 15 . 10 50 . . . . . Destroy Leader 296 | . 10 112 84 40 50 . . . Successful Hack 107 | . . 17 10 12 26 . 24 18 Disable Machine 195 | . . . 90 . 105 . . . Destroy Structure 178 | . . 4 116 1 57 . . . Partial Spotted 45 | . . . . . . 15 . 30 Lose Combat Pursuer 315 | . . . 60 . 90 30 . 135 Influence Decreases 2301 | 15 50 432 497 495 446 209 44 113 Entered New Map 292 | . . . 7 177 2 95 11 . Time Decay 1533 | 15 50 400 430 318 184 25 33 78 Lost Part 347 | . . 32 60 . 220 . . 35 Lost Ally 40 | . . . . . 40 . . . Purge Threat 89 | . . . . . . 89 . . Squads Dispatched 23 | . 3 1 3 4 7 2 . 3 Investigation 6 | . 3 . . 2 1 . . . Extermination 6 | . . . . 2 2 1 . 1 Reinforcement 9 | . . 1 3 . 2 1 . 2 Assault . | . . . . . . . . . Garrison 2 | . . . . . 2 . . . Intercept . | . . . . . . . . . Searches Triggered . | . . . . . . . . . Construction Impeded 1 | . . . 1 . . . . . Haulers Reinforced . | . . . . . . . . . Active Scanning Responses . | . . . . . . . . . Cargo Convoy Interrupts . | . . . . . . . . . Stealth | -11 -10 -9 -8 -7 -6 -5 -4 -3 --------- Run | Yrd Mat Mat Mat Fac Fac Fac Fac Res Distress Signals 5 | . . 1 2 . 1 . 1 . Communications Jammed . | . . . . . . . . . Distress Signals . | . . . . . . . . . Times Spotted 114 | . 4 18 32 6 26 4 2 22 Peak Tracking Total 13 | . 4 4 6 3 10 2 2 13 Tactical Retreats 11 | . . . 4 . 2 1 . 4 Traps | -11 -10 -9 -8 -7 -6 -5 -4 -3 ------- Run | Yrd Mat Mat Mat Fac Fac Fac Fac Res Traps Triggered 3 | . 1 . 1 . 1 . . . Indirectly . | . . . . . . . . . Trap Hack Attempts . | . . . . . . . . . Triggered . | . . . . . . . . . Disarmed . | . . . . . . . . . Reprogrammed . | . . . . . . . . . Reused . | . . . . . . . . . Traps Extracted . | . . . . . . . . . Installed . | . . . . . . . . . Triggered . | . . . . . . . . . Machines | -11 -10 -9 -8 -7 -6 -5 -4 -3 ---------- Run | Yrd Mat Mat Mat Fac Fac Fac Fac Res Machines Disabled 13 | . . . 6 . 7 . . . Max in Single Turn 2 | . . . 2 . 2 . . . Garrison Access 1 | . . . 1 . . . . . Machines Repaired . | . . . . . . . . . Machines Dismantled . | . . . . . . . . . Machines Sabotaged . | . . . . . . . . . Overloaded Fab Kills . | . . . . . . . . . Hacking | -11 -10 -9 -8 -7 -6 -5 -4 -3 --------- Run | Yrd Mat Mat Mat Fac Fac Fac Fac Res Machines Accessed 25 | . 4 4 3 2 2 2 4 4 Terminals 14 | . 3 3 2 . . 2 2 2 Fabricators 2 | . . . . . 1 . 1 . Repair Stations . | . . . . . . . . . Recycling Units 5 | . 1 1 . . . . 1 2 Scanalyzers 2 | . . . . 1 1 . . . Garrison Access 2 | . . . 1 1 . . . . Total Hacks 83 | . 9 8 8 5 5 14 18 16 Successful 43 | . 3 5 4 1 2 6 12 10 Failed 39 | . 6 3 4 4 2 8 6 6 Catastrophic 6 | . . 1 2 . . . 2 1 Database Lockouts 1 | . . . . . 1 . . . Manual 45 | . 7 7 2 . . 11 9 9 Terminals 53 | . 7 7 6 . . 14 10 9 Fabricators 5 | . . . . . 2 . 3 . Repair Stations . | . . . . . . . . . Recycling Units 15 | . 2 1 . . . . 5 7 Scanalyzers 6 | . . . . 3 3 . . . Garrison Access 4 | . . . 2 2 . . . . Terminal Hacks 8 | . . 1 1 . . 4 2 . Record 1 | . . . . . . . 1 . Level Access Points 1 | . . . . . . 1 . . Terminal Index 1 | . . . . . . 1 . . Unreport Threat 1 | . . . . . . 1 . . Hauler Manifests 1 | . . . 1 . . . . . Zone Layout 3 | . . 1 . . . 1 1 . Fabricator Hacks 2 | . . . . . 1 . 1 . Build 2 | . . . . . 1 . 1 . Repair Station Hacks . | . . . . . . . . . Recycling Unit Hacks 13 | . . 1 . . . . 5 7 Recycle Component 1 | . . . . . . . 1 . Process 3 | . . . . . . . 1 2 Report Inventory 3 | . . . . . . . 1 2 Retrieve Matter 5 | . . . . . . . 2 3 Retrieve Components 1 | . . 1 . . . . . . Scanalyzer 2 | . . . . 1 1 . . . Retrieve Study 2 | . . . . 1 1 . . . Garrison Access Hacks 1 | . . . 1 . . . . . Seal Access 1 | . . . 1 . . . . . Unauthorized Hacks 17 | . 3 3 2 . . 2 4 3 Terminals 17 | . 3 3 2 . . 2 4 3 Assimilate 6 | . 2 . . . . 1 2 1 Botnet 11 | . 1 3 2 . . 1 2 2 Fabricators . | . . . . . . . . . Repair Stations . | . . . . . . . . . Recycling Units . | . . . . . . . . . Scanalyzers . | . . . . . . . . . Garrison Access . | . . . . . . . . . Data Cores Recovered 1 | . . . 1 . . . . . Used . | . . . . . . . . . Hacking Detections 21 | . 4 3 2 2 2 2 3 3 Full Trace Events 4 | . 2 . . 2 . . . . Feedback Events 1 | . . . . 1 . . . . Corruption 1 | . . . . 1 . . . . Feedback Blocked . | . . . . . . . . . Robot Schematics Acquired . | . . . . . . . . . Robots Built 4 | . . . . . 4 . . . Authchips . | . . . . . . . . . Time 40 | . . . . . 40 . . . Total Robot Build Rating 4 | . . . . . 4 . . . Part Schematics Acquired . | . . . . . . . . . Parts Built 2 | . . . . . . . 2 . Authchips . | . . . . . . . . . Time 46 | . . . . . . . 46 . Total Part Build Rating 18 | . . . . . . . 18 . Part Studies Acquired 2 | . . . . 1 1 . . . Parts Repaired . | . . . . . . . . . Time . | . . . . . . . . . Parts Recycled 1 | . . . . . . . 1 . Recycled Matter 69 | . . . . . . . 20 49 Retrieved Matter 69 | . . . . . . . 20 49 Retrieved Components 5 | . . 5 . . . . . . Parts Scanalyzed . | . . . . . . . . . Part Schematics Acquired . | . . . . . . . . . Parts Damaged . | . . . . . . . . . Bothacking | -11 -10 -9 -8 -7 -6 -5 -4 -3 ------------ Run | Yrd Mat Mat Mat Fac Fac Fac Fac Res Used RIF Installer . | . . . . . . . . . Robots Hacked 3 | . . . . . . 1 2 . Non-combat 2 | . . . . . . 1 1 . Combat 1 | . . . . . . . 1 . Robot Hacks Applied 3 | . . . . . . 1 2 . parse_system 2 | . . . . . . . 2 . check_alert 1 | . . . . . . 1 . . Relay Couplers Released . | . . . . . . . . . Fabnet Peak Effective % . | . . . . . . . . . Robots Rewired . | . . . . . . . . . Allies Hacked 1 | . . . . . 1 . . . Hacks Repelled . | . . . . . . . . . Allies | -11 -10 -9 -8 -7 -6 -5 -4 -3 -------- Run | Yrd Mat Mat Mat Fac Fac Fac Fac Res Total Allies 5 | . . . . . 4 1 . . Largest Group 4 | . . . . . 4 1 1 . Highest-Rated Group 24 | . . . . . 24 10 10 . Highest-Rated Ally 10 | . . . . . 6 10 10 . Total Orders 1 | . . . . . . 1 . . FOLLOW 1 | . . . . . . 1 . . Ally Attacks . | . . . . . . . . . Total Damage . | . . . . . . . . . Kills . | . . . . . . . . . Allies Corrupted . | . . . . . . . . . Allies Melted . | . . . . . . . . . Intel | -11 -10 -9 -8 -7 -6 -5 -4 -3 ------- Run | Yrd Mat Mat Mat Fac Fac Fac Fac Res Active Infowar (turns) 1157 | 48 341 202 . . 566 . . . Terrain 587 | 21 . . . . 566 . . . Seismic 570 | 27 341 202 . . . . . . Robot Analysis Total . | . . . . . . . . . Derelict Logs Recovered . | . . . . . . . . . Drone Launches . | . . . . . . . . . Drone Recoveries . | . . . . . . . . . Exploration | -11 -10 -9 -8 -7 -6 -5 -4 -3 ------------- Run | Yrd Mat Mat Mat Fac Fac Fac Fac Res Turns Passed 5220 | 141 341 1102 1462 708 686 267 301 212 Spaces Moved 2985 | 67 183 312 487 299 337 529 331 440 Core 376 | 2 . . . . 117 45 . 212 Treads 1554 | 53 183 312 487 299 220 . . . Legs . | . . . . . . . . . Wheels 12 | 12 . . . . . . . . Hover . | . . . . . . . . . Flight 1043 | . . . . . . 484 331 228 Fastest Speed 45 | 50 160 160 243 213 50 45 45 45 Average Speed 147 | 144 160 290 246 214 160 45 82 47 Slowest Speed 330 | 160 160 330 250 243 277 50 285 100 Overloaded Moves . | . . . . . . . . . Propulsion Burnouts . | . . . . . . . . . Robots Hopped 7 | . . . . . . 7 . . Potential Cave-ins . | . . . . . . . . . Cave-ins Triggered . | . . . . . . . . . Exploration Rate (%) 19 | 5 35 34 54 9 11 7 7 12 Regions Visited 8 Branch Regions . Pre-discovered Areas . | . . . . . . . . . Known Exits Taken 1 | . . . . . . 1 . . Unknown Exits Taken 7 | 1 1 1 1 1 1 . 1 . Scrap Searched . | . . . . . . . . . Spaces Dug 4 | . . . . 1 3 . . . Terrain Destroyed 190 | . . . 128 1 61 . . . Melee 4 | . . . . 1 3 . . . Projectile 11 | . . . 11 . . . . . AOE 175 | . . . 117 . 58 . . . Terrain Rammed 1 | . . . . . . 1 . . Walls Destroyed . | . . . . . . . . . Machines Disabled . | . . . . . . . . . Actions | -11 -10 -9 -8 -7 -6 -5 -4 -3 --------- Run | Yrd Mat Mat Mat Fac Fac Fac Fac Res Total 3417 | 90 210 415 621 336 401 546 357 441 Wait 97 | . 2 28 25 13 5 4 20 . Move 2963 | 66 182 311 486 298 336 514 330 440 Hop 7 | . . . . . . 7 . . Pick Up 47 | 4 7 10 15 6 3 2 . . Fast Attach 18 | 7 . 1 2 . . 6 2 . Attach 35 | . 1 5 8 3 12 5 1 . Detach 8 | . . 1 1 1 . 3 2 . Swap 20 | 3 2 3 7 . 5 . . . Drop 10 | . 2 3 1 1 2 1 . . Fire 204 | 10 13 53 76 13 34 3 2 . Melee 4 | . . . . 1 3 . . . Ram 3 | . . . . . 1 1 . 1 Kick . | . . . . . . . . . Crush 1 | . 1 . . . . . . . Escape Stasis . | . . . . . . . . . Rewire . | . . . . . . . . . Trap . | . . . . . . . . . Miscellaneous . | . . . . . . . . . Route ------- -11/Scrapyard -10/Materials -9/Materials -8/Materials -7/Factory (discovered 2 exits: *Fac / [*Low]) -6/Factory -5/Factory (discovered 4 exits: *Fac x4) -4/Factory -3/Research History --------- Turn | Location | Event 30 | -11/Scrapyard | Discovered new exit (range 15) 142 | -11/Scrapyard | Entered Materials 314 | -10/Materials | Build established: Mutant 382 | -10/Materials | Discovered new exit (range 13) 483 | -10/Materials | Entered another Materials area 483 | -9/Materials | Evolved 2 slots: Utility x2 1526 | -9/Materials | Discovered new exit (range 8) 1585 | -9/Materials | Entered another Materials area 1585 | -8/Materials | Evolved 2 slots: Propulsion x2 1977 | -8/Materials | Build established: Scavenger-Mutant 2492 | -8/Materials | Build established: Mutant 3025 | -8/Materials | Discovered new exit (range 8) 3047 | -8/Materials | Entered Factory 3047 | -7/Factory | Evolved 2 slots: Weapon x2 3424 | -7/Factory | Discovered new exit (range 5) 3447 | -7/Factory | Discovered new exit (range 4) 3594 | -7/Factory | Build established: Tank 3755 | -7/Factory | Entered another Factory area 3755 | -6/Factory | Evolved 2 slots: Utility x2 3908 | -6/Factory | Central database locked down 4056 | -6/Factory | Build established: Scavenger-Skirmisher 4199 | -6/Factory | Garrison activated, responded to threat 4302 | -6/Factory | Fabricated K-01 Serf (x4) 4321 | -6/Factory | Garrison activated, responded to threat 4386 | -6/Factory | Core integrity fell below 50% 4415 | -6/Factory | Lost 18 parts (2p4n5u7w) 4433 | -6/Factory | Discovered new exit (range 15) 4441 | -6/Factory | Entered another Factory area 4441 | -5/Factory | Evolved 2 slots: Utility x2 4554 | -5/Factory | Identified exit to Factory 4708 | -5/Factory | Entered another Factory area 4708 | -4/Factory | Accompanied by 1 ally 4708 | -4/Factory | Evolved 2 slots: Utility x2 4893 | -4/Factory | Discovered new exit (range 8) 4896 | -4/Factory | Build established: Wizard-Mutant 4934 | -4/Factory | Fabricated Lgt. Quantum Reactor? 5009 | -4/Factory | Entered Research 5009 | -3/Research | Evolved 2 slots: Utility x2 5024 | -3/Research | Spotted B-86 Titan 5155 | -3/Research | Lost 5 parts (1n3u1w) 5155 | -3/Research | Core integrity fell below 50% 5199 | -3/Research | Core integrity fell below 20% 5221 | -3/Research | Destroyed by Y-72 Warden with Quantum Rifle Last Messages --------------- 05149_ ALERT: Potential suspicious activity detected, Programmers report to Research Zone 5D. 05152_ Connecting with Terminal... >>Trojan(Botnet) Trojan loaded successfully. Testing... Terminal linked with 1 system. Awaiting botnet instructions. 05153_ O-32 Director: "IFF HANDSHAKE FAILED. SECURING TERMINAL." 05162_ ALERT: Hostiles spotted, dispatching reinforcements to Terminal R017. 05175_ ALERT: Hostiles spotted, dispatching reinforcements to Terminal R015. 05181_ Slammed into S-43 Plague. 05184_ Imp. System Shield destroyed. 05184_ Imp. Hacking Suite destroyed. 05202_ System Shield destroyed. 05221_ Slug penetrates Wall. Map ----- +----------------------------------------------------+ | ????#** """ #???????????????????????????????? | | ????#*! """ #???????????????????????????????? | | ????# """ #???????????????????????????????? | | ????# """ #???????????????????????????????? | | ????# """ #???????????????????????????????? | | ????# #???????????????????????????????? | | ????# #???????????????????????????????? | | ????# #???????????????????????????????? | | +##########/######???????????????????????????????? | | ! + #???????????????????????????????????? | | # #???????????????????????????????????? | | # #???????????????????????????????????? | | """"" / #???????????????????????????????????? | | """"" # #??????????????????????????????###### | | ?""""" # #??????????????????????????????# = | | ? ?# #?########+#+####??????????????# | | ?# ### #??########????# | | ####+#### #"" #??# #????# | | # #"" #??# #????#"" | | == " #"T """ #??# #????#"" | | == # #"" """ #??# #????#"" | | = ! # #"" """ #??# #????#T | | # ### #???? ?????#"" | | # k Y Y #######/########"" | | # k ss #"" | | = # @ + | | ######### ##### ################ | | ????????# ########???######??????????????###### | | ????????# #???????????????????????????????????? | | ????????# #???????????????????????????????????? | | ????????# #???????????????????????????????????? | | ????????# #???????????????????????????????????? | | ????????# #???????????????????????????????????? | | ????????+ ????????????????????????????????????? | | ????????# ????????????????????????????????????? | | ????????# ????????????????????????????????????? | | ????????# ????????????????????????????????????? | | ????????? ????????????????????????????????????? | | ??????????? ?????????????????????????????????????? | | ?????????????????????????????????????????????????? | | ?????????????????????????????????????????????????? | | ?????????????????????????????????????????????????? | | ?????????????????????????????????????????????????? | | ?????????????????????????????????????????????????? | | ?????????????????????????????????????????????????? | | ?????????????????????????????????????????????????? | | ?????????????????????????????????????????????????? | | ?????????????????????????????????????????????????? | | ?????????????????????????????????????????????????? | | ?????????????????????????????????????????????????? | +----------------------------------------------------+ Best States ------------- Heat Dissipation 65 Energy Generation 25 Energy Capacity 325 Matter Stores 300 Matter Capacity 300 Sight Range 16 Terrain Scan Range 16 Terrain Scan Density 110 Armor Coverage 300 Resistance: EM 15 Power Shielding 33 Evasion (%) 61 Recoil Reduction 4 Particle Charging 20 Offensive Hacking 26 Defensive Hacking 36 Item Schematics ----------------- None Robot Schematics ------------------ None Fabricated ------------ K-01 Serf | x4 | -6/Factory | Preloaded Lgt. Quantum Reactor | x2 | -4/Factory | Preloaded Repaired ---------- Nothing Studied --------- Arm. Treads | -7/Factory | Hacked Adv. Treads | -6/Factory | Hacked Alien Tech Used ----------------- None Achievements -------------- Shopping List Challenges ------------ None Game ------ Seed AuthchipCatalystCyclogen Manual? 0 Play Time 00:56:43 Cumulative 50.5 hours Start 2026.03.01 @ 21:18:45 End 2026.03.02 @ 00:43:06 Sessions 1 Manual Loads 0 Difficulty Rogue Special Mode None Game No. 119 Rogue 119 Adventurer 0 Explorer 0 Win Type - Total 0 Types 0/0/0/0/0/0/0/0/0/0 Lore% 30 Gallery% 38 Achievement% 29 Wizard Run 0 Options --------- Layout 2 ASCII 0 Keyboard 1 Movement Arrows Keybinds 0 Fullscreen 1 Font 24/Smallcaps Map View 50x44 Zoom Use 0% Tactical HUD 1 Map Filters NONE Filters NONE Steam 1 RUN: b8e53d79-644a-46a0-ab19-981a658f247d